[Event "90th GER-ch 2019"]
[Site "Magdeburg"]
[Date "2019.06.01"]
[Round "9.12"]
[White "Schulz, Lukas"]
[Black "Heimrath, Reiner"]
[Result "1-0"]
[ECO "B30"]
[WhiteElo "2302"]
[BlackElo "2239"]
[Annotator "ChessBase"]
[PlyCount "117"]
[EventDate "2019.05.26"]
[EventType "tourn"]
[EventCountry "GER"]
[SourceTitle "playchess.com"]
[Source "ChessBase"]
[SourceQuality "1"]
[TimeControl "40/5400+30:1800+30"]

1. e4 {[%emt 0:00:00]} c5 {[%emt 0:00:00]} 2. Nf3 {[%emt 0:00:00]} Nc6 {[%emt 0:00:00]} 3. Bb5 {[%emt 0:00:00]} e5 {[%emt 0:01:46]} 4. O-O {[%emt 0:05:41]} Nge7 {[%emt 0:13:21]} 5. c3 {[%emt 0:02:36]} a6 {[%emt 0:00:14]} 6. Ba4 {[%emt 0:00:47]} b5 {[%emt 0:00:07]} 7. Bb3 {[%emt 0:00:06]} c4 {[%emt 0:00:31]} 8. Bc2 {[%emt 0:00:07]} Ng6 {[%emt 0:17:07]} 9. d3 {[%emt 0:04:23]} cxd3 {[%emt 0:00:07]} 10. Qxd3 {[%emt 0:00:06]} Be7 {[%emt 0:00:13]} 11. Be3 {[%emt 0:02:52]} O-O {[%emt 0:01:09]} 12. Nbd2 {[%emt 0:02:58]} Rb8 {[%emt 0:00:48]} 13. Rfd1 {[%emt 0:07:35]} d6 {[%emt 0:00:10]} 14. a4 {[%emt 0:04:33]} Qc7 {[%emt 0:02:22]} 15. axb5 {[%emt 0:01:17]} axb5 {[%emt 0:00:02]} 16. Bb3 {[%emt 0:10:09]} h6 {[%emt 0:04:56]} 17. Bd5 {[%emt 0:05:11]} Kh8 {[%emt 0:05:52]} 18. Nf1 {[%emt 0:14:51]} Na5 {[%emt 0:17:45]} 19. N1d2 {[%emt 0:05:53]} Be6 {[%emt 0:03:01]} 20. b4 {[%emt 0:06:59]} Nc6 {[%emt 0:02:29]} 21. Ra6 {[%emt 0:06:11]} Bd7 {[%emt 0:01:16]} 22. Rda1 {[%emt 0:01:37]} Qc8 {[%emt 0:02:01]} 23. g3 {[%emt 0:03:33]} Kh7 {[%emt 0:03:59]} 24. h4 {[%emt 0:01:21]} Qe8 {[%emt 0:02:38]} 25. Kg2 {[%emt 0:01:42]} Nh8 {[%emt 0:00:40]} 26. Rh1 {[%emt 0:01:47]} Qc8 {[%emt 0:00:28]} 27. Rha1 {[%emt 0:00:46]} Qe8 {[%emt 0:05:06]} 28. Bb6 {[%emt 0:05:50]} Rc8 {[%emt 0:03:30]} 29. Nf1 {[%emt 0:03:24]} g6 {[%emt 0:03:24]} 30. Ne3 {[%emt 0:00:11]} f5 {[%emt 0:00:32]} 31. h5 {[%emt 0:00:15]} f4 {[%emt 0:00:28]} 32. hxg6+ {[%emt 0:00:11]} Qxg6 {[%emt 0:01:01]} 33. Nf5 {[%emt 0:00:08]} Rxf5 {[%emt 0:01:31]} 34. exf5 {[%emt 0:00:06]} Bxf5 {[%emt 0:00:05]} 35. Qxb5 {[%emt 0:00:52]} Bd3 {[%emt 0:03:14]} 36. c4 {[%emt 0:01:07]} e4 {[%emt 0:03:36]} 37. Bxc6 {[%emt 0:01:23]} Rxc6 {[%emt 0:00:54]} 38. Qxc6 {[%emt 0:00:09]} exf3+ {[%emt 0:00:06]} 39. Kxf3 {[%emt 0:00:25]} Nf7 {[%emt 0:00:47]} 40. gxf4 {[%emt 0:00:19]} Qh5+ {[%emt 0:00:29]} 41. Kg2 {[%emt 0:02:51]} Qg4+ {[%emt 0:17:47]} 42. Kh1 {[%emt 0:00:22]} Qxf4 {[%emt 0:00:28]} 43. Re1 {[%emt 0:05:41]} Ne5 {[%emt 0:00:46]} 44. Qg2 {[%emt 0:01:33]} Bg5 {[%emt 0:07:46]} 45. Ra7+ {[%emt 0:02:40]} Kg6 {[%emt 0:00:16]} 46. Re3 {[%emt 0:04:05]} Qxc4 {[%emt 0:01:38]} 47. Bd8 {[%emt 0:04:50]} Ng4 {[%emt 0:04:16]} 48. Bxg5 {[%emt 0:03:48]} hxg5 {[%emt 0:00:02]} 49. Re1 {[%emt 0:05:00]} Qd4 {[%emt 0:00:38]} 50. Re6+ {[%emt 0:01:49]} Nf6 {[%emt 0:01:48]} 51. Ra5 {[%emt 0:02:24]} Bf5 {[%emt 0:00:35]} 52. Rxf6+ {[%emt 0:02:00]} Qxf6 {[%emt 0:01:28]} 53. Kg1 {[%emt 0:00:25]} Qe6 {[%emt 0:00:37]} 54. Ra1 {[%emt 0:01:00]} d5 {[%emt 0:00:31]} 55. b5 {[%emt 0:00:12]} Be4 {[%emt 0:00:33]} 56. Ra6 {[%emt 0:00:23]} Bxg2 {[%emt 0:00:23]} 57. Rxe6+ {[%emt 0:00:08]} Kf5 {[%emt 0:00:03]} 58. b6 {[%emt 0:00:47]} d4 {[%emt 0:00:07]} 59. Kxg2 {[%emt 0:00:23]} 1-0

[Event "90th GER-ch 2019"]
[Site "Magdeburg"]
[Date "2019.06.01"]
[Round "9.13"]
[White "Svane, Frederik"]
[Black "Dauth, Benjamin"]
[Result "1/2-1/2"]
[ECO "C71"]
[WhiteElo "2342"]
[BlackElo "2295"]
[Annotator "ChessBase"]
[PlyCount "90"]
[EventDate "2019.05.26"]
[EventType "tourn"]
[EventCountry "GER"]
[SourceTitle "playchess.com"]
[Source "ChessBase"]
[SourceQuality "1"]
[TimeControl "40/5400+30:1800+30"]

1. e4 {[%emt 0:00:00]} e5 {[%emt 0:00:00]} 2. Nf3 {[%emt 0:00:00]} Nc6 {[%emt 0:00:00]} 3. Bb5 {[%emt 0:00:00]} a6 {[%emt 0:02:06]} 4. Ba4 {[%emt 0:00:00]} d6 {[%emt 0:01:10]} 5. d4 {[%emt 0:02:00]} Bd7 {[%emt 0:08:58]} 6. c3 {[%emt 0:02:24]} Nf6 {[%emt 0:00:08]} 7. O-O {[%emt 0:00:08]} Be7 {[%emt 0:00:43]} 8. Re1 {[%emt 0:00:18]} O-O {[%emt 0:00:42]} 9. Nbd2 {[%emt 0:00:43]} b5 {[%emt 0:04:36]} 10. Bc2 {[%emt 0:00:27]} Bg4 {[%emt 0:01:07]} 11. h3 {[%emt 0:00:37]} Bh5 {[%emt 0:00:03]} 12. d5 {[%emt 0:05:52]} Bxf3 {[%emt 0:09:16]} 13. Qxf3 {[%emt 0:03:14]} Nb8 {[%emt 0:00:10]} 14. a4 {[%emt 0:00:11]} c6 {[%emt 0:00:18]} 15. b4 {[%emt 0:40:46]} bxa4 {[%emt 0:10:55]} 16. Bxa4 {[%emt 0:14:58]} a5 {[%emt 0:03:47]} 17. dxc6 {[%emt 0:17:52]} axb4 {[%emt 0:00:26]} 18. Nb3 {[%emt 0:00:10]} Qc8 {[%emt 0:12:12]} 19. cxb4 {[%emt 0:01:00]} Nxc6 {[%emt 0:00:04]} 20. Qc3 {[%emt 0:03:03]} Nd4 {[%emt 0:00:05]} 21. Qxc8 {[%emt 0:00:08]} Rfxc8 {[%emt 0:00:04]} 22. Nxd4 {[%emt 0:00:06]} exd4 {[%emt 0:00:03]} 23. Bd2 {[%emt 0:00:20]} d5 {[%emt 0:01:08]} 24. exd5 {[%emt 0:05:41]} Nxd5 {[%emt 0:00:06]} 25. b5 {[%emt 0:00:49]} Bc5 {[%emt 0:06:05]} 26. Bb3 {[%emt 0:00:38]} Rxa1 {[%emt 0:00:49]} 27. Rxa1 {[%emt 0:00:03]} Nc3 {[%emt 0:00:08]} 28. Bc4 {[%emt 0:00:57]} Kf8 {[%emt 0:01:37]} 29. Kf1 {[%emt 0:00:39]} Rb8 {[%emt 0:00:33]} 30. Bxc3 {[%emt 0:01:14]} dxc3 {[%emt 0:00:03]} 31. Rc1 {[%emt 0:00:35]} Bb4 {[%emt 0:01:08]} 32. Ke2 {[%emt 0:00:16]} Ke7 {[%emt 0:02:03]} 33. Rb1 {[%emt 0:00:48]} Rd8 {[%emt 0:01:21]} 34. Bd3 {[%emt 0:00:28]} Bc5 {[%emt 0:00:45]} 35. Rb3 {[%emt 0:00:15]} Bd4 {[%emt 0:00:30]} 36. Be4 {[%emt 0:00:34]} Kd6 {[%emt 0:00:54]} 37. Kd3 {[%emt 0:00:08]} Kc5 {[%emt 0:00:28]} 38. b6 {[%emt 0:00:31]} Be5+ {[%emt 0:00:23]} 39. Ke3 {[%emt 0:00:19]} Kc4 {[%emt 0:00:59]} 40. Rb1 {[%emt 0:00:06]} Bd4+ {[%emt 0:01:25]} 41. Ke2 {[%emt 0:05:44]} Re8 {[%emt 0:02:59]} 42. Kf3 {[%emt 0:00:09]} g6 {[%emt 0:04:28]} 43. b7 {[%emt 0:01:47]} Ba7 {[%emt 0:00:04]} 44. Ra1 {[%emt 0:02:29]} Bb8 {[%emt 0:00:09]} 45. Bc2 {[%emt 0:00:36]} Re7 {[%emt 0:04:38] Ke4} 1/2-1/2

[Event "90th GER-ch 2019"]
[Site "Magdeburg"]
[Date "2019.06.01"]
[Round "9.14"]
[White "Adiyaman, Rene"]
[Black "Kardoeus, David"]
[Result "0-1"]
[ECO "B22"]
[WhiteElo "2175"]
[BlackElo "2202"]
[Annotator "ChessBase"]
[PlyCount "124"]
[EventDate "2019.05.26"]
[EventType "tourn"]
[EventCountry "GER"]
[SourceTitle "playchess.com"]
[Source "ChessBase"]
[SourceQuality "1"]
[TimeControl "40/5400+30:1800+30"]

1. e4 c5 2. c3 Nf6 3. e5 Nd5 4. Nf3 Nc6 5. d4 cxd4 6. cxd4 d6 7. Bc4 dxe5 8. Bxd5 Qxd5 9. Nc3 Qd6 10. d5 Nd4 11. Nxd4 exd4 12. Qxd4 e5 13. Qd3 Bd7 14. O-O Be7 15. f4 O-O 16. fxe5 Qxe5 17. Bf4 Qf5 18. Qxf5 Bxf5 19. d6 Bd8 20. Rad1 f6 21. Nd5 Bg4 22. Rd2 Kf7 23. a3 Rc8 24. h3 Bd7 25. Nc7 h6 26. Rc1 f5 27. Re2 g5 28. Bd2 f4 29. Rce1 Bxc7 30. Re7+ Kg6 31. Rxd7 Bb6+ 32. Kh2 Rc2 33. Re2 Be3 34. Rxe3 fxe3 35. Bxe3 Rf7 36. Rxf7 Kxf7 37. Bxa7 Ke6 38. Bd4 h5 39. Kg3 Rd2 40. Be3 Rd3 41. Kf2 Rd5 42. b4 Kxd6 43. a4 Ke6 44. Kf3 Rd3 45. Ke2 Rb3 46. Bxg5 Rxb4 47. a5 Rb3 48. Be3 Kf5 49. Bb6 Ke4 50. Kf2 h4 51. Bd8 Rb2+ 52. Kg1 Ra2 53. Kh2 Kd3 54. Bxh4 Rxa5 55. Kg3 b5 56. Kf3 Ra7 57. g4 Rf7+ 58. Kg2 b4 59. Bg3 Ke4 60. Be1 b3 61. Bc3 Rc7 62. Bh8 Kf4 0-1

[Event "90th GER-ch 2019"]
[Site "Magdeburg"]
[Date "2019.06.01"]
[Round "9.15"]
[White "Polster, Christian"]
[Black "Guenther, Andreas"]
[Result "1-0"]
[ECO "A01"]
[WhiteElo "2236"]
[BlackElo "2121"]
[Annotator "ChessBase"]
[PlyCount "59"]
[EventDate "2019.05.26"]
[EventType "tourn"]
[EventCountry "GER"]
[SourceTitle "playchess.com"]
[Source "ChessBase"]
[SourceQuality "1"]
[TimeControl "40/5400+30:1800+30"]

1. b3 {[%emt 0:00:00]} e5 {[%emt 0:00:35]} 2. Bb2 {[%emt 0:00:00]} Nc6 {[%emt 0:00:23]} 3. e3 {[%emt 0:00:00]} Nf6 {[%emt 0:00:45]} 4. Bb5 {[%emt 0:00:26]} Bd6 {[%emt 0:00:58]} 5. Na3 {[%emt 0:01:22]} Na5 {[%emt 0:00:56]} 6. Be2 {[%emt 0:01:15]} c6 {[%emt 0:02:20]} 7. c4 {[%emt 0:01:40]} Qe7 {[%emt 0:01:24]} 8. Nc2 {[%emt 0:01:02]} c5 {[%emt 0:05:49]} 9. d4 {[%emt 0:03:19]} exd4 {[%emt 0:05:40]} 10. exd4 {[%emt 0:00:22]} Nc6 {[%emt 0:01:04]} 11. Nf3 {[%emt 0:00:42]} O-O {[%emt 0:09:28]} 12. O-O {[%emt 0:02:18]} Ne4 {[%emt 0:03:58]} 13. Bd3 {[%emt 0:12:34]} f5 {[%emt 0:10:40]} 14. Re1 {[%emt 0:13:22]} cxd4 {[%emt 0:10:10]} 15. Ncxd4 {[%emt 0:04:13]} Nxd4 {[%emt 0:10:50]} 16. Bxe4 {[%emt 0:07:43]} fxe4 {[%emt 0:00:15]} 17. Qxd4 {[%emt 0:00:37]} Rf4 {[%emt 0:09:05]} 18. Nd2 {[%emt 0:02:45]} Bb4 {[%emt 0:06:33]} 19. Rxe4 {[%emt 0:01:24]} Rxe4 {[%emt 0:01:03]} 20. Nxe4 {[%emt 0:00:20]} d6 {[%emt 0:01:29]} 21. Bc3 {[%emt 0:18:39]} Bxc3 {[%emt 0:04:46]} 22. Nxc3 {[%emt 0:00:09]} Bd7 {[%emt 0:03:22]} 23. Rd1 {[%emt 0:01:34]} Re8 {[%emt 0:00:11]} 24. h3 {[%emt 0:02:57]} Bc6 {[%emt 0:00:32]} 25. Qxd6 {[%emt 0:01:20]} Qg5 {[%emt 0:00:05]} 26. Nd5 {[%emt 0:02:23]} h6 {[%emt 0:00:06]} 27. Qf4 {[%emt 0:01:13]} Qh5 {[%emt 0:01:06]} 28. Qg4 {[%emt 0:00:47]} Qe5 {[%emt 0:01:04]} 29. f4 {[%emt 0:15:50]} Qe4 {[%emt 0:03:46]} 30. Nf6+ {[%emt 0:00:05]} 1-0

[Event "90th GER-ch 2019"]
[Site "Magdeburg"]
[Date "2019.06.01"]
[Round "9.16"]
[White "Nosek, Reinhard"]
[Black "Moeller, Dustin"]
[Result "0-1"]
[ECO "D02"]
[WhiteElo "1913"]
[BlackElo "2156"]
[Annotator "ChessBase"]
[PlyCount "63"]
[EventDate "2019.05.26"]
[EventType "tourn"]
[EventCountry "GER"]
[SourceTitle "playchess.com"]
[Source "ChessBase"]
[SourceQuality "1"]
[TimeControl "40/5400+30:1800+30"]

1. d4 {[%emt 0:00:00]} d5 {[%emt 0:00:00]} 2. Nf3 {[%emt 0:00:00]} Nf6 {[%emt 0:00:00]} 3. Bf4 {[%emt 0:00:07]} e6 {[%emt 0:00:00]} 4. Nbd2 {[%emt 0:00:12]} c5 {[%emt 0:00:05]} 5. c3 {[%emt 0:00:12]} Nc6 {[%emt 0:00:09]} 6. e3 {[%emt 0:00:19]} cxd4 {[%emt 0:00:06]} 7. exd4 {[%emt 0:00:36]} Nh5 {[%emt 0:00:08]} 8. Be3 {[%emt 0:00:20]} Bd6 {[%emt 0:00:10]} 9. Bb5 {[%emt 0:01:27]} g6 {[%emt 0:07:22]} 10. Ne5 {[%emt 0:02:09]} Bd7 {[%emt 0:04:04]} 11. Nxd7 {[%emt 0:06:22]} Qxd7 {[%emt 0:00:07]} 12. Nf3 {[%emt 0:00:09]} f6 {[%emt 0:01:10]} 13. Qd2 {[%emt 0:01:36]} O-O {[%emt 0:03:25]} 14. O-O {[%emt 0:07:31]} Qf7 {[%emt 0:03:14]} 15. Rad1 {[%emt 0:02:10]} Rad8 {[%emt 0:01:42]} 16. Qc1 {[%emt 0:11:03]} g5 {[%emt 0:06:13]} 17. g3 {[%emt 0:10:23]} Ne7 {[%emt 0:08:57]} 18. Bd3 {[%emt 0:00:29]} Ng6 {[%emt 0:05:17]} 19. Qc2 {[%emt 0:02:36]} g4 {[%emt 0:05:21]} 20. Bxg6 {[%emt 0:00:33]} hxg6 {[%emt 0:00:08]} 21. Ne1 {[%emt 0:02:08]} Qh7 {[%emt 0:16:05]} 22. f4 {[%emt 0:04:24]} Ng7 {[%emt 0:02:34]} 23. Bc1 {[%emt 0:05:02]} Nf5 {[%emt 0:03:37]} 24. Qe2 {[%emt 0:00:12]} Qh5 {[%emt 0:11:31]} 25. Nd3 {[%emt 0:08:23]} Kf7 {[%emt 0:00:55]} 26. Rde1 {[%emt 0:01:41]} Rde8 {[%emt 0:03:37]} 27. Qg2 {[%emt 0:01:29]} Rh8 {[%emt 0:00:41]} 28. Re2 {[%emt 0:00:19]} Rh7 {[%emt 0:00:58]} 29. Kf2 {[%emt 0:03:42]} Qxh2 {[%emt 0:00:38]} 30. Ke1 {[%emt 0:02:51]} Qxg3+ {[%emt 0:00:16]} 31. Kd2 {[%emt 0:00:05]} Rh3 {[%emt 0:01:50]} 32. Rg1 {[%emt 0:01:12]} 0-1